fUST/lending_fUST_20240120
["ID","MTS","AMOUNT","RATE_DAILY","PERIOD"]
[312213590,1705689039324,-228.01384031,0.00029998,2]
[312213592,1705689039333,-317.49900988,0.0003,3]
[312213595,1705689039343,-2156.0,0.0003,3]
[312213597,1705689039352,-688.01285151,0.0003,4]
[312213599,1705689039361,-300.0,0.0003,14]
[312213600,1705689039370,-155.0,0.0003,2]
[312213602,1705689039379,-311.08667117,0.00030034,10]
[312213604,1705689039388,-355.32,0.00030035,2]
[312213606,1705689039398,-355.32,0.00030035,2]
[312213608,1705689039407,-355.32,0.00030035,2]
[312213610,1705689039416,-355.32,0.00030035,2]
[312213612,1705689039425,-355.32,0.00030035,2]
[312213614,1705689039433,-355.32,0.00030035,2]
[312213616,1705689039442,-355.32,0.00030035,2]
[312213618,1705689039451,-355.32,0.00030035,2]
[312213620,1705689039461,-154.86062544,0.00030036,2]
[312213622,1705689039470,-4320.19775833,0.00030036,4]
[312213624,1705689039479,-497.63363651,0.00030036,4]
[312213626,1705689039489,-283.06089695,0.00030036,3]
[312213628,1705689039498,-195.20473695,0.00030036,4]
[312213630,1705689039510,-154.86062544,0.00030036,14]
[312213632,1705689039520,-151964.64901232,0.00030036,14]
[312213634,1705689039528,-197.66015105,0.0003013,2]
[312213636,1705689039537,-2114.47,0.00030134,2]
[312213638,1705689039547,-500.0,0.00030134,2]
[312213640,1705689039555,-150.0,0.00030136,2]
[312213642,1705689039564,-150.0,0.00030136,2]
[312213644,1705689039574,-150.0,0.00030136,2]
[312213646,1705689039583,-150.0,0.00030136,2]
[312213648,1705689039592,-150.0,0.00030136,2]
[312213650,1705689039601,-150.0,0.00030136,2]
[312213652,1705689039610,-500.0,0.00030136,2]
[312213654,1705689039619,-500.0,0.00030136,2]
[312213656,1705689039628,-220.0,0.00030136,2]
[312213658,1705689039637,-178.90377653,0.00030136,2]
[312213660,1705689039646,-500.0,0.00030136,2]
[312213662,1705689039655,-160.999532,0.00030137,2]
[312213664,1705689039664,-178.477084,0.00030137,2]
[312213666,1705689039674,-163.73318,0.00030137,2]
[312213668,1705689039683,-500.0,0.00030273,2]
[312213670,1705689039695,-3481.25171774,0.00030378,4]
[312213672,1705689039704,-150.0,0.00030407,2]
[312213674,1705689039714,-2114.47,0.00030408,2]
[312213676,1705689039723,-500.0,0.00030408,2]
[312213678,1705689039734,-500.0,0.0003041,2]
[312213680,1705689039743,-500.0,0.0003041,2]
[312213682,1705689039754,-500.0,0.0003041,2]
[312213684,1705689039765,-3994.29080351,0.000305,2]
[312213686,1705689039776,-500.0,0.00030547,2]
[312213688,1705689039785,-373.0,0.0003066,30]
[312213690,1705689039795,-175.06,0.0003066,30]
[312213692,1705689039804,-373.0,0.0003067,30]
[312213694,1705689039814,-150.5,0.0003067,30]
[312213696,1705689039823,-243.69,0.0003068,30]
[312213698,1705689039832,-373.0,0.0003068,30]
[312213700,1705689039842,-150.5,0.0003068,30]
[312213702,1705689039851,-2114.47,0.00030682,2]
[312213704,1705689039861,-500.0,0.00030682,2]
[312213706,1705689039870,-500.0,0.00030684,2]
[312213708,1705689039879,-500.0,0.00030684,2]
[312213710,1705689039889,-500.0,0.00030684,2]
[312213712,1705689039898,-238.5,0.0003069,30]
[312213714,1705689039907,-500.0,0.00030821,2]
[312213716,1705689039916,-2114.47,0.00030956,2]
[312213718,1705689039927,-500.0,0.00030956,2]
[312213720,1705689039936,-500.0,0.00030958,2]
[312213722,1705689039945,-500.0,0.00030958,2]
[312213724,1705689039955,-500.0,0.00030958,2]
[312213726,1705689039964,-163.73318,0.00030959,2]
[312213728,1705689039973,-460.17684779,0.00030998,4]
[312213730,1705689039982,-214.0852314,0.00030998,4]
[312213732,1705689039991,-222.91353684,0.00030998,4]
[312213734,1705689040001,-439.58570389,0.00030998,4]
[312213736,1705689040011,-742.63347537,0.00030998,4]
[312213738,1705689040020,-301.77611122,0.00030998,4]
[312213740,1705689040029,-198.46962736,0.00030998,4]
[312213742,1705689040038,-154.92253873,0.00030998,4]
[312213744,1705689040048,-154.8915759,0.00030998,4]
[312213745,1705689040057,-10787.72152051,0.00030998,4]
[312213747,1705689040067,-260.99609825,0.00030998,4]
[312213749,1705689040078,-1160.53170858,0.00030998,4]
[312213752,1705689040088,-155.34362049,0.00030998,4]
[312213754,1705689040097,-294.45441607,0.00030998,4]
[312213756,1705689040106,-346.38618659,0.00030998,4]
[312213758,1705689040115,-191.31512244,0.00030998,4]
[312213760,1705689040125,-253.97986618,0.00030998,4]
[312213763,1705689040135,-1858.7499098,0.00030998,5]
[312213765,1705689040145,-3099.32913741,0.00030998,4]
[312213767,1705689040154,-1815.68321298,0.00030998,2]
[312213768,1705689040164,-3952.6950564,0.00030999,4]
[312213770,1705689040173,-539.42456744,0.00030999,4]
[312213772,1705689040183,-355.32,0.00030999,2]
[312213774,1705689040194,-355.32,0.00030999,2]
[312213776,1705689040203,-433.78102858,0.00030999,4]
[312213778,1705689040213,-426.90393844,0.00030999,4]
[312213780,1705689040223,-505.29629579,0.00030999,4]
[312213782,1705689040232,-238.08177011,0.00031,2]
[312213784,1705689040241,-471526.54179183,0.00031,2]
[312213786,1705689040257,-1424.96561769,0.00031,2]
[312213789,1705689040268,-2385.29591351,0.00031,2]
[312213791,1705689040279,-6954.27332323,0.00031,2]
[312213955,1705689041859,-838.31494696,0.00031,2]
[312213958,1705689041871,-76515.28311328,0.00031,2]
[312214072,1705689042880,-3072.02,0.0003099,3]
[312214074,1705689042890,-1398.60461284,0.00031,2]
[312214442,1705689046041,-1260.09265858,0.0002647,2]
[312215834,1705689953105,-238.23153817,0.00026467,2]
[312215835,1705689953126,-804.00500026,0.00026467,2]
[312215836,1705690028141,-167.915799,0.00026467,2]
[312215837,1705690029192,-992.02859772,0.00026467,2]
[312215838,1705690035095,-1999.12236563,0.00026467,2]
[312215839,1705690035115,-1146.56738273,0.00026467,2]
[312215855,1705690234007,-1074.63214319,0.00026467,2]
[312215956,1705690241377,-3963.07176261,0.00026466,2]
[312215959,1705690241494,-7084.09869138,0.00026467,2]
[312215960,1705690241503,-441.53946514,0.00026467,2]
[312215961,1705690241517,-322.13427346,0.00026467,2]
[312215962,1705690241526,-1233.42113194,0.00026468,2]
[312215963,1705690241535,-750.77624464,0.00026998,2]
[312215964,1705690241544,-154.93802479,0.00026998,2]
[312215965,1705690241553,-351.22049841,0.000274,2]
[312215966,1705690241563,-588.57676825,0.000275,2]
[312215967,1705690241572,-200.0,0.00027792,15]
[312215968,1705690241581,-5067.08975013,0.0002785,4]
[312215969,1705690241590,-410.47740177,0.00028,2]
[312215970,1705690241599,-168.871397,0.000282,2]
[312215971,1705690241607,-1134.31276962,0.000289,2]
[312215972,1705690241616,-1879.41245692,0.00029,2]
[312215973,1705690241626,-985.45385721,0.00029232,5]
[312215974,1705690241635,-19989.61033371,0.00029232,5]
[312215975,1705690241643,-283.06089695,0.0003,3]
[312215976,1705690241652,-154.86062544,0.0003,2]
[312215977,1705690241662,-195.20473695,0.0003,4]
[312215978,1705690241671,-500.0,0.0003,3]
[312215979,1705690241680,-200.0,0.0003,2]
[312215980,1705690241689,-201.222012,0.00030137,2]
[312215981,1705690241699,-163.73318,0.00030137,2]
[312215982,1705690241708,-280.0,0.00030572,15]
[312215983,1705690241718,-500.0,0.00030899,2]
[312215984,1705690241727,-9516.0084336,0.000309,2]
[312215985,1705690241736,-151.76085646,0.000309,2]
[312215986,1705690241746,-201.222012,0.00030959,2]
[312215987,1705690241755,-261.0,0.0003097,30]
[312215988,1705690241764,-261.0,0.0003098,30]
[312215989,1705690241774,-261.0,0.0003099,30]
[312215990,1705690241783,-310.78488395,0.00030998,4]
[312215991,1705690241794,-785.49820761,0.00030998,4]
[312215992,1705690241803,-1092.05006708,0.00030998,4]
[312215993,1705690241813,-689.19500465,0.00030998,4]
[312215994,1705690241821,-460.6949633,0.00030998,4]
[312215995,1705690241830,-224.71,0.00030999,2]
[312215996,1705690241840,-224.71,0.00030999,2]
[312215997,1705690241850,-224.71,0.00030999,2]
[312215998,1705690241859,-224.71,0.00030999,2]
[312215999,1705690241869,-224.71,0.00030999,2]
[312216000,1705690241878,-224.71,0.00030999,2]
[312216001,1705690241887,-224.71,0.00030999,2]
[312216002,1705690241896,-500.0,0.00030999,2]
[312216003,1705690241906,-500.0,0.00030999,2]
[312216004,1705690241915,-500.0,0.00030999,2]
[312216005,1705690241924,-243.78200378,0.00030999,2]
[312216006,1705690241933,-306.31303093,0.00030999,2]
[312216007,1705690241942,-500.0,0.00030999,2]
[312216008,1705690241952,-500.0,0.00030999,2]
[312216009,1705690241961,-487.71677901,0.00030999,2]
[312216010,1705690241970,-500.0,0.00030999,2]
[312216011,1705690241979,-500.0,0.00030999,2]
[312216012,1705690241992,-500.0,0.00030999,2]
[312216013,1705690242001,-486.42985762,0.00030999,2]
[312216014,1705690242011,-5169.17028065,0.00031,2]
[312216015,1705690242023,-37128.19705199,0.00031,2]
[312216115,1705690243670,-782.91931114,0.00031,2]
[312216126,1705690243847,-9912.54770082,0.00031,2]
[312216127,1705690243858,-6965.45233006,0.00031,2]
[312216479,1705690247468,-4998.32,0.0003099,3]
[312216481,1705690247478,-2290.10540057,0.00031,2]
[312216512,1705690649181,1420.0,0.000251,10]
[312217601,1705691225173,-296.75355326,0.00021,2]
[312217602,1705691228332,-250.0,0.00021,2]
[312217603,1705691234141,-452.47030798,0.00021,2]
[312217605,1705691346231,-689.54479498,0.00021,2]
[312217606,1705691346251,-194.24479466,0.00021,2]
[312217607,1705691346271,-7754.41518108,0.00021,2]
[312217608,1705691346291,-3963.07176261,0.00022699,2]
[312217609,1705691346310,-823.86653966,0.000227,2]
[312217610,1705691346330,-3989.71739118,0.00024,2]
[312217661,1705691434212,-21.87034894,0.00024,2]
[312217663,1705691434222,-2445.77312627,0.00024,2]
[312217665,1705691434233,-1594.27718307,0.00024,2]
[312217666,1705691434242,-200.0,0.00026354,15]
[312217667,1705691434251,-394.29603775,0.00026467,2]
[312217668,1705691434261,-499.0,0.000287,7]
[312217669,1705691434270,-46.51615351,0.00028798,2]
[312217750,1705691439752,-250.23739975,0.00028798,2]
[312217752,1705691439761,-2175.52046214,0.00028798,2]
[312217764,1705691439861,-1787.55130047,0.00028798,2]
[312217766,1705691439871,-526.58797391,0.00028799,2]
[312217768,1705691439880,-853.26276189,0.000288,2]
[312217770,1705691439892,-4209.87716374,0.000288,2]
[312217774,1705691439922,-8793.42176158,0.000288,2]
[312217777,1705691439934,-2885.85564029,0.000288,2]
[312217779,1705691439943,-8984.45645726,0.000288,2]
[312217783,1705691439954,-2240.62235996,0.000288,2]
[312217887,1705691442065,-6041.78031691,0.000288,2]
[312217888,1705691442081,-997.71986329,0.000288,2]
[312217889,1705691442092,-6609.6210818,0.000288,2]
[312217890,1705691442102,-756.20851308,0.000289,2]
[312217891,1705691442111,-280.0,0.00028989,15]
[312217892,1705691442122,-419.8099439,0.00029,2]
[312217912,1705691443411,-1459.60251302,0.00029,2]
[312217913,1705691443422,-3000.0,0.00029,7]
[312217914,1705691443431,-1021.36653143,0.00029232,5]
[312217915,1705691443443,-379.55294564,0.00029232,4]
[312217916,1705691443452,-8987.95591458,0.0002945,4]
[312217917,1705691443462,-464.33375401,0.0003,2]
[312217918,1705691443471,-500.0,0.00030136,2]
[312217920,1705691443481,-174.39241,0.00030137,2]
[312217922,1705691443490,-163.73318,0.00030137,2]
[312217924,1705691443498,-500.0,0.00030273,2]
[312217926,1705691443510,-2892.55,0.0003038,3]
[312217927,1705691443520,-2369.03659145,0.0003038,3]
[312217928,1705691443531,-41.42340855,0.0003038,3]
[312217929,1705691443543,-2136.26747699,0.0003039,3]
[312217942,1705691446499,-500.0,0.0003041,2]
[312217943,1705691446509,-3000.0,0.000305,14]
[312217944,1705691446519,-430.35531449,0.00030547,2]
[312217945,1705691446529,-211.40076255,0.000306,14]
[312217946,1705691446647,-875.51388078,0.000306,14]
[312217952,1705692399133,-156.87167711,0.00023997,2]
[312217953,1705692399154,-153.52279371,0.00023998,2]
[312217955,1705692434125,-1130.75735343,0.00023998,2]
[312217956,1705692436133,-167.915799,0.00023998,2]
[312217957,1705692450126,-2291.92134946,0.00023998,2]
[312217958,1705692450147,-1798.42044971,0.00023999,2]
[312217959,1705692450166,-2713.96845512,0.00027,2]
[312217981,1705692632490,-4394.70924678,0.00027,2]
[312217982,1705692632502,-186.64032255,0.00027,2]
[312217983,1705692632511,-2381.72027173,0.00027,2]
[312217984,1705692632522,-941.38887687,0.00027,2]
[312218575,1705692638607,-716.94116074,0.00027,2]
[312218576,1705692638615,-300.0,0.00027,2]
[312218577,1705692638624,-763.6737386,0.00027,2]
[312218578,1705692638633,-155.38504427,0.00027,2]
[312218579,1705692638642,-225.08432184,0.00027,2]
[312218580,1705692638650,-1273.29555953,0.00027,2]
[312218581,1705692638659,-308.48179,0.00027,2]
[312218582,1705692638668,-890.1973123,0.00027033,2]
[312218583,1705692638676,-264.020091,0.00027033,2]
[312218584,1705692638684,-1880.5445251,0.00027325,2]
[312218585,1705692638693,-760.31790163,0.00027896,5]
[312218586,1705692638702,-1113.91161195,0.00027896,2]
[312218587,1705692638711,-300.0,0.00028,2]
[312218588,1705692638720,-504.13900872,0.0002828,2]
[312218590,1705692638731,-1612.8635761,0.00028288,2]
[312218594,1705692638740,-200.0,0.00028349,15]
[312218598,1705692638749,-702.47030798,0.00028798,2]
[312218601,1705692638758,-6450.11066995,0.0002907,4]
[312218603,1705692638768,-2304.85619132,0.00029232,5]
[312218605,1705692638776,-1457.0530588,0.00029232,5]
[312218607,1705692638789,-4429.5703663,0.00029232,5]
[312218849,1705692641644,-305.51246618,0.00028,2]
[312218850,1705692641654,-53.5361539,0.00028252,2]
[312218851,1705692641703,-196.4638461,0.00028252,2]
[312218852,1705692641713,-192.83196926,0.00029232,5]
[312218853,1705692641726,-1596.79825062,0.00029232,5]
[312218854,1705692641737,-683.01775281,0.00029232,5]
[312218855,1705692641747,-191.7250181,0.0002948,2]
[312218856,1705692641757,-500.0,0.0003,3]
[312218857,1705692641767,-464.33375401,0.00030136,2]
[312218858,1705692641778,-153.0,0.00030137,2]
[312218859,1705692641788,-327.9954237,0.00030137,2]
[312218860,1705692641798,-153.0,0.00030137,2]
[312218861,1705692641808,-417.7674032,0.00030137,2]
[312218862,1705692641817,-401.679406,0.00030137,2]
[312218863,1705692641826,-153.0,0.00030137,2]
[312218864,1705692641835,-153.0,0.00030137,2]
[312218865,1705692641844,-153.0,0.00030137,2]
[312218866,1705692641854,-163.73318,0.00030137,2]
[312218867,1705692641863,-185.307956,0.00030137,2]
[312218868,1705692641875,-1913.0,0.000305,14]
[312218869,1705692641885,-500.0,0.00030599,2]
[312218870,1705692641898,-195.20473695,0.000306,4]
[312218871,1705692641907,-2911.66058371,0.000306,4]
[312218872,1705692641917,-283.06089695,0.000306,3]
[312218873,1705692641927,-154.86062544,0.000306,2]
[312218874,1705692641937,-1684.60969121,0.00030676,2]
[312218875,1705692641946,-500.0,0.00030736,2]
[312218876,1705692641955,-5793.36296873,0.000309,2]
[312218877,1705692641964,-204.19277229,0.000309,2]
[312218878,1705692641975,-185.307956,0.00030959,2]
[312218879,1705692641984,-183.0,0.0003097,30]
[312218880,1705692641992,-183.0,0.0003098,30]
[312218881,1705692642001,-2260.89,0.00030985,3]
[312218882,1705692642011,-4311.36,0.00030986,3]
[312218883,1705692642020,-3592.8,0.00030986,3]
[312218884,1705692642029,-2994.0,0.00030986,3]
[312218885,1705692642039,-183.0,0.0003099,30]
[312218886,1705692642048,-154.9690062,0.00030994,4]
[312218887,1705692642058,-155.62749359,0.00030994,4]
[312218888,1705692642068,-1168.62799703,0.00030994,4]
[312218889,1705692642077,-154.93802479,0.00030994,4]
[312218890,1705692642086,-303.84522028,0.00030994,4]
[312218891,1705692642095,-156.4906529,0.00030995,4]
[312218892,1705692642105,-1108.86169578,0.00030995,4]
[312218893,1705692642114,-167.73386874,0.00030995,4]
[312218894,1705692642123,-3239.76726906,0.00030995,4]
[312218895,1705692642132,-2995.12470388,0.00030995,4]
[312218896,1705692642141,-616.381645,0.00030996,4]
[312218897,1705692642150,-2461.39130918,0.00030996,4]
[312218898,1705692642159,-985.83387689,0.00030996,7]
[312218899,1705692642169,-1590.36182158,0.00030996,4]
[312218900,1705692642179,-178.82165208,0.00030996,4]
[312218901,1705692642189,-575.22057676,0.00030996,4]
[312218902,1705692642200,-3516.48872707,0.00030996,4]
[312218903,1705692642210,-792.39329559,0.00030996,4]
[312218904,1705692642219,-1251.25826469,0.00030996,4]
[312218905,1705692642230,-469.61997632,0.00030996,4]
[312218906,1705692642240,-166.35364662,0.00030996,4]
[312218907,1705692642251,-742.68164678,0.00030997,4]
[312218908,1705692642260,-7757.24696779,0.00030997,4]
[312218929,1705692643546,-261.40839953,0.000274,2]
[312218930,1705692643556,-154.96023507,0.00030994,4]
[312218931,1705692643565,-6148.34366666,0.00030997,4]
[312218932,1705692643574,-1281.12926874,0.00030998,4]
[312218933,1705692643584,-260.43027978,0.00030998,4]
[312218934,1705692643593,-522.93963422,0.00030998,4]
[312218935,1705692643602,-166.70935578,0.00030998,4]
[312218938,1705692643612,-194.44766784,0.00030998,4]
[312218941,1705692643621,-678.89502784,0.00030998,4]
[312218943,1705692643630,-663.3841438,0.00030998,4]
[312218944,1705692643640,-848.2997621,0.00030998,4]
[312218945,1705692643649,-2170.3168048,0.00030998,4]
[312218946,1705692643658,-164.91120392,0.00030998,4]
[312218947,1705692643667,-2535.82639996,0.00030998,4]
[312218948,1705692643678,-7583.47180199,0.00030998,4]
[312218949,1705692643687,-155.00310006,0.00030998,4]
[312218950,1705692643697,-329.83275795,0.00030998,4]
[312218951,1705692643706,-1576.73391587,0.00030998,4]
[312218952,1705692643716,-322.00858596,0.00030998,4]
[312218953,1705692643726,-155.00620012,0.00030998,4]
[312218954,1705692643734,-677.01308619,0.00030998,4]
[312218955,1705692643743,-198.85280588,0.00030998,4]
[312218956,1705692643752,-594.03896551,0.00030998,4]
[312218957,1705692643760,-385.95978851,0.00030998,4]
[312219008,1705692646578,-154.9690062,0.00027,2]
[312219011,1705692646588,-1165.05496982,0.0003099,3]
[312219013,1705692646600,-435.34359155,0.0003099,3]
[312219159,1705693540112,-199.14321435,0.00026982,2]
[312219160,1705693540133,-843.09332408,0.00026982,2]
[312219161,1705693636116,-3145.68974836,0.00026976,2]
[312219162,1705693639266,-167.915799,0.00026976,2]
[312219163,1705693640153,-170.40184222,0.00026976,2]
[312219164,1705693640179,-154.86062544,0.00026977,2]
[312219165,1705693640201,-666.76613006,0.00026977,2]
[312219187,1705693834736,-15212.39198366,0.00026965,2]
[312219189,1705693834745,-3963.07176261,0.00026966,2]
[312219191,1705693834756,-238.23153817,0.00026966,2]
[312219194,1705693834764,-644.05484588,0.00026967,2]
[312219196,1705693834773,-678.20873721,0.00026968,2]
[312219198,1705693834782,-15906.57674273,0.00026968,2]
[312219200,1705693834792,-4040.05030934,0.00026977,2]
[312219201,1705693834801,-245.56171794,0.00026977,2]
[312219203,1705693834810,-154.86062544,0.00026982,7]
[312219206,1705693834820,-4636.56786473,0.00026989,2]
[312219208,1705693834829,-1531.63577097,0.0002699,2]
[312219210,1705693834838,-763.6737386,0.00027,2]
[312219211,1705693834846,-2170.1294719,0.00027,2]
[312219213,1705693834855,-182.794138,0.00027135,2]
[312219215,1705693834864,-200.0,0.0002833,15]
[312219217,1705693834873,-755.90864085,0.00028645,2]
[312219329,1705693838817,-392.25861618,0.00028645,2]
[312219331,1705693838827,-155.06823002,0.00028701,3]
[312219333,1705693838836,-3000.0,0.000288,3]
[312219335,1705693838845,-150.0,0.000288,2]
[312219337,1705693838854,-343.6968226,0.00028898,2]
[312219339,1705693838864,-182.794138,0.00028985,2]
[312219341,1705693838873,-2228.27,0.0002922,3]
[312219343,1705693838882,-1856.89,0.0002922,3]
[312219345,1705693838891,-253.97986618,0.00029228,2]
[312219347,1705693838900,-1858.7499098,0.00029228,5]
[312219349,1705693838909,-154.92253873,0.00029228,2]
[312219351,1705693838918,-191.31512244,0.00029228,2]
[312219353,1705693838927,-170.50663149,0.00029228,2]
[312219355,1705693838936,-155.0,0.00029228,2]
[312219357,1705693838945,-163.7019,0.00029229,2]
[312219359,1705693838954,-517.8862133,0.00029229,2]
[312219361,1705693838963,-5579.51870927,0.0002923,2]
[312219363,1705693838972,-334.8362529,0.0002923,2]
[312219365,1705693838981,-178.87513889,0.0002923,2]
[312219367,1705693838990,-266.64256563,0.0002923,2]
[312219369,1705693838999,-1299.26146621,0.0002923,2]
[312219371,1705693839008,-214.0852314,0.0002923,2]
[312219373,1705693839017,-301.77611122,0.0002923,2]
[312219375,1705693839026,-1160.53170858,0.0002923,2]
[312219377,1705693839035,-154.8915759,0.0002923,2]
[312219379,1705693839043,-260.99609825,0.0002923,2]
[312219381,1705693839053,-294.45441607,0.0002923,2]
[312219383,1705693839062,-1815.68321298,0.0002923,2]
[312219385,1705693839071,-346.38618659,0.0002923,2]
[312219387,1705693839080,-155.34362049,0.0002923,2]
[312219390,1705693839099,-198.31166745,0.0002923,2]
[312219392,1705693839109,-226.32093431,0.0002923,2]
[312219394,1705693839119,-1577.23828043,0.00029231,2]
[312219396,1705693839129,-5000.0,0.00029232,5]
[312219398,1705693839138,-35316.53019262,0.00029232,4]
[312219400,1705693839148,-4350.90468977,0.00029232,3]
[312219402,1705693839157,-1505.68974234,0.00029238,3]
[312219404,1705693839167,-9114.76945328,0.00029441,4]
[312219406,1705693839176,-243.31956482,0.0003,3]
[312219408,1705693839186,-1000.0,0.0003,30]
[312219410,1705693839195,-688.01285151,0.0003,4]
[312219412,1705693839205,-464.33375401,0.0003,2]
[312219414,1705693839214,-155.41682727,0.0003,4]
[312219416,1705693839224,-500.0,0.00030136,2]
[312219418,1705693839233,-153.0,0.00030137,2]
[312219420,1705693839242,-153.0,0.00030137,2]
[312219422,1705693839252,-153.0,0.00030137,2]
[312219424,1705693839261,-153.0,0.00030137,2]
[312219426,1705693839270,-153.0,0.00030137,2]
[312219428,1705693839280,-240.3506667,0.00030137,2]
[312219430,1705693839291,-306.034734,0.00030137,2]
[312219432,1705693839302,-153.0,0.00030137,2]
[312219434,1705693839311,-305.965266,0.00030137,2]
[312219437,1705693839322,-153.0,0.00030137,2]
[312219439,1705693839332,-153.0,0.00030137,2]
[312219441,1705693839341,-199.0432224,0.00030137,2]
[312219443,1705693839351,-153.0,0.00030137,2]
[312219445,1705693839360,-199.0432224,0.00030137,2]
[312219447,1705693839372,-153.0,0.00030137,2]
[312219449,1705693839383,-425.5351148,0.00030137,2]
[312219451,1705693839392,-199.0432224,0.00030137,2]
[312219453,1705693839402,-199.0432224,0.00030137,2]
[312219455,1705693839411,-199.0432224,0.00030137,2]
[312219457,1705693839421,-153.0,0.00030137,2]
[312219459,1705693839431,-153.0,0.00030137,2]
[312219461,1705693839442,-153.0,0.00030137,2]
[312219463,1705693839452,-167.141256,0.00030137,2]
[312219465,1705693839462,-226.873549,0.00030137,2]
[312219467,1705693839472,-806.436926,0.00030137,2]
[312219469,1705693839481,-806.436926,0.00030137,2]
[312219471,1705693839491,-500.0,0.00030273,2]
[312219473,1705693839500,-500.0,0.0003041,2]
[312219475,1705693839510,-500.0,0.00030547,2]
[312219477,1705693839520,-500.0,0.00030684,2]
[312219479,1705693839529,-193.7063891,0.00030773,2]
[312219482,1705693839539,-193.7063891,0.00030805,2]
[312219484,1705693839548,-500.0,0.00030821,2]
[312219486,1705693839557,-182.794138,0.00030834,2]
[312219488,1705693839566,-193.7063891,0.00030836,2]
[312219490,1705693839575,-193.7063891,0.00030868,2]
[312219504,1705693839694,-175.06,0.0003087,30]
[312219506,1705693839703,-150.5,0.0003087,30]
[312219508,1705693839713,-273.1,0.0003087,30]
[312219510,1705693839723,-1117.0,0.0003087,30]
[312219512,1705693839733,-500.0,0.00030872,2]
[312219514,1705693839742,-500.0,0.00030872,2]
[312219516,1705693839751,-500.0,0.00030872,2]
[312219518,1705693839760,-243.78200378,0.00030872,2]
[312219520,1705693839769,-487.71677901,0.00030872,2]
[312219522,1705693839779,-500.0,0.00030872,2]
[312219524,1705693839788,-500.0,0.00030872,2]
[312219526,1705693839797,-500.0,0.00030872,2]
[312219528,1705693839806,-500.0,0.00030872,2]
[312219530,1705693839814,-500.0,0.00030872,2]
[312219532,1705693839824,-500.0,0.00030872,2]
[312219534,1705693839833,-172.81741909,0.00030872,2]
[312219535,1705693839842,-306.31303093,0.00030872,2]
[312219537,1705693839854,-500.0,0.00030872,2]
[312219539,1705693839864,-500.0,0.00030872,2]
[312219541,1705693839874,-151.0,0.00030873,2]
[312219543,1705693839885,-10000.0,0.00030873,2]
[312219545,1705693839894,-10000.0,0.00030873,2]
[312219547,1705693839903,-10000.0,0.00030873,2]
[312219549,1705693839912,-10000.0,0.00030873,2]
[312219551,1705693839921,-10000.0,0.00030873,2]
[312219554,1705693839931,-10000.0,0.00030873,2]
[312219556,1705693839940,-10000.0,0.00030873,2]
[312219557,1705693839950,-10000.0,0.00030873,2]
[312219559,1705693839959,-10000.0,0.00030873,2]
[312219561,1705693839968,-806.436926,0.00030873,2]
[312219563,1705693839977,-806.436926,0.00030873,2]
[312219565,1705693839987,-806.436926,0.00030873,2]
[312219567,1705693839998,-806.436926,0.00030873,2]
[312219569,1705693840007,-806.436926,0.00030873,2]
[312219571,1705693840016,-806.436926,0.00030873,2]
[312219573,1705693840025,-806.436926,0.00030873,2]
[312219575,1705693840034,-806.436926,0.00030873,2]
[312219577,1705693840043,-150.5,0.0003088,30]
[312219579,1705693840052,-150.5,0.0003088,30]
[312219581,1705693840061,-150.5,0.0003088,30]
[312219583,1705693840070,-1117.0,0.0003088,30]
[312219585,1705693840079,-157.43,0.0003089,30]
[312219587,1705693840089,-150.5,0.0003089,30]
[312219589,1705693840098,-243.69,0.0003089,30]
[312219592,1705693840107,-150.5,0.0003089,30]
[312219594,1705693840116,-150.5,0.0003089,30]
[312219596,1705693840124,-1117.0,0.0003089,30]
[312219598,1705693840133,-296.96180065,0.00030898,2]
[312219600,1705693840142,-425.53656097,0.00030898,2]
[312219603,1705693840151,-302.106511,0.00030899,2]